[Event "Titled Tuesday Blitz April 26 Early 2022"]
[White "Martin, Lewis"]
[Black "Omariev, Maksim"]
[WhiteFideId "410551"]
[BlackFideId "4193423"]
[WhiteElo "2145"]
[BlackElo "2480"]
[Result "0-1"]
[Round "09"]
[TimeControl "180+1"]
[Date "2022.04.26"]
[WhiteClock "0:00:01"]
[BlackClock "0:00:25"]

1. e4 {[%clk 0:03:00]}  h5 {[%clk 0:03:00]} 2. d4 {[%clk 0:03:00]}  h4 {[%clk 0:03:01]} 3. Nf3 {[%clk 0:02:58]}  h3 {[%clk 0:03:01]} 4. g3 {[%clk 0:02:58]}  c6 {[%clk 0:03:01]} 5. c4 {[%clk 0:02:57]}  d5 {[%clk 0:03:01]} 6. Nc3 {[%clk 0:02:55]}  dxe4 {[%clk 0:03:01]} 7. Nxe4 {[%clk 0:02:54]}  Bf5 {[%clk 0:03:02]} 8. Bd3 {[%clk 0:02:53]}  e6 {[%clk 0:03:01]} 9. O-O {[%clk 0:02:46]}  Nf6 {[%clk 0:02:59]} 10. Nxf6+ {[%clk 0:02:43]}  Qxf6 {[%clk 0:03:00]} 11. Bxf5 {[%clk 0:02:42]}  Qxf5 {[%clk 0:03:00]} 12. Ne5 {[%clk 0:02:30]}  Bd6 {[%clk 0:02:54]} 13. Re1 {[%clk 0:02:07]}  f6 {[%clk 0:02:43]} 14. Nd3 {[%clk 0:02:02]}  Nd7 {[%clk 0:02:39]} 15. Bf4 {[%clk 0:02:00]}  Be7 {[%clk 0:02:20]} 16. Qe2 {[%clk 0:01:46]}  g5 {[%clk 0:02:10]} 17. g4 {[%clk 0:01:28]}  Qh7 {[%clk 0:02:05]} 18. Bg3 {[%clk 0:01:26]}  O-O-O {[%clk 0:01:51]} 19. Rad1 {[%clk 0:01:05]}  Nf8 {[%clk 0:01:37]} 20. Qe4 {[%clk 0:00:48]}  Qf7 {[%clk 0:01:33]} 21. b4 {[%clk 0:00:40]}  Bd6 {[%clk 0:01:23]} 22. Bxd6 {[%clk 0:00:30]}  Rxd6 {[%clk 0:01:23]} 23. b5 {[%clk 0:00:25]}  cxb5 {[%clk 0:01:11]} 24. cxb5 {[%clk 0:00:23]}  Kb8 {[%clk 0:01:08]} 25. Nc5 {[%clk 0:00:19]}  Rh4 {[%clk 0:01:01]} 26. d5 {[%clk 0:00:13]}  e5 {[%clk 0:00:51]} 27. a4 {[%clk 0:00:09]}  Ng6 {[%clk 0:00:39]} 28. a5 {[%clk 0:00:08]}  Nf4 {[%clk 0:00:28]} 29. f3 {[%clk 0:00:08]}  Rxd5 {[%clk 0:00:23]} 30. Rxd5 {[%clk 0:00:03]}  Qxd5 {[%clk 0:00:24]} 31. Qxd5 {[%clk 0:00:01]}  Nxd5 {[%clk 0:00:25]} 0-1


[Site "https://www.chess.com"]

[Event "Titled Tuesday Blitz April 26 Early 2022"]
[White "Matamoros Franco, Carlos S."]
[Black "Pourkashiyan, Atousa"]
[WhiteFideId "3600017"]
[BlackFideId "12502014"]
[WhiteElo "2554"]
[BlackElo "2247"]
[Result "1-0"]
[Round "09"]
[TimeControl "180+1"]
[Date "2022.04.26"]
[WhiteClock "0:00:18"]
[BlackClock "0:01:03"]

1. c4 {[%clk 0:02:58]}  e6 {[%clk 0:02:28]} 2. g3 {[%clk 0:02:57]}  d5 {[%clk 0:02:27]} 3. Bg2 {[%clk 0:02:58]}  Nf6 {[%clk 0:02:27]} 4. Nf3 {[%clk 0:02:59]}  Be7 {[%clk 0:02:26]} 5. O-O {[%clk 0:02:57]}  d4 {[%clk 0:02:27]} 6. e3 {[%clk 0:02:55]}  c5 {[%clk 0:02:26]} 7. exd4 {[%clk 0:02:54]}  cxd4 {[%clk 0:02:27]} 8. Ne5 {[%clk 0:02:53]}  Nbd7 {[%clk 0:02:27]} 9. Nxd7 {[%clk 0:02:52]}  Nxd7 {[%clk 0:02:26]} 10. d3 {[%clk 0:02:51]}  e5 {[%clk 0:02:25]} 11. Re1 {[%clk 0:02:45]}  O-O {[%clk 0:02:25]} 12. Nd2 {[%clk 0:02:45]}  f6 {[%clk 0:02:23]} 13. a3 {[%clk 0:02:40]}  Nc5 {[%clk 0:02:22]} 14. Ne4 {[%clk 0:02:39]}  a5 {[%clk 0:02:17]} 15. f4 {[%clk 0:02:32]}  Qc7 {[%clk 0:01:56]} 16. fxe5 {[%clk 0:02:25]}  fxe5 {[%clk 0:01:56]} 17. Qe2 {[%clk 0:01:47]}  Nxe4 {[%clk 0:01:54]} 18. Bxe4 {[%clk 0:01:47]}  Bf5 {[%clk 0:01:53]} 19. Bd2 {[%clk 0:01:34]}  Bxe4 {[%clk 0:01:48]} 20. Qxe4 {[%clk 0:01:34]}  Bd6 {[%clk 0:01:40]} 21. b4 {[%clk 0:01:33]}  axb4 {[%clk 0:01:40]} 22. axb4 {[%clk 0:01:26]}  Qc6 {[%clk 0:01:40]} 23. Rxa8 {[%clk 0:01:06]}  Rxa8 {[%clk 0:01:39]} 24. Qxc6 {[%clk 0:00:54]}  bxc6 {[%clk 0:01:40]} 25. Kf1 {[%clk 0:00:44]}  Ra2 {[%clk 0:01:36]} 26. Rd1 {[%clk 0:00:42]}  Rb2 {[%clk 0:01:36]} 27. c5 {[%clk 0:00:38]}  Bc7 {[%clk 0:01:35]} 28. Ke2 {[%clk 0:00:35]}  Kf7 {[%clk 0:01:35]} 29. Ra1 {[%clk 0:00:34]}  Ke6 {[%clk 0:01:34]} 30. Ra8 {[%clk 0:00:31]}  h5 {[%clk 0:01:26]} 31. Rc8 {[%clk 0:00:29]}  Kd7 {[%clk 0:01:24]} 32. Rg8 {[%clk 0:00:29]}  h4 {[%clk 0:01:21]} 33. Rxg7+ {[%clk 0:00:27]}  Kc8 {[%clk 0:01:19]} 34. gxh4 {[%clk 0:00:25]}  e4 {[%clk 0:01:19]} 35. dxe4 {[%clk 0:00:26]}  Bf4 {[%clk 0:01:19]} 36. h5 {[%clk 0:00:20]}  Rxd2+ {[%clk 0:01:18]} 37. Kf3 {[%clk 0:00:20]}  Be3 {[%clk 0:01:17]} 38. e5 {[%clk 0:00:14]}  Rxh2 {[%clk 0:01:15]} 39. e6 {[%clk 0:00:14]}  Rxh5 {[%clk 0:01:15]} 40. Rg8+ {[%clk 0:00:14]}  Kc7 {[%clk 0:01:09]} 41. e7 {[%clk 0:00:14]}  Re5 {[%clk 0:01:09]} 42. e8=Q {[%clk 0:00:14]}  Rxe8 {[%clk 0:01:10]} 43. Rxe8 {[%clk 0:00:15]}  Bd2 {[%clk 0:01:11]} 44. Ke4 {[%clk 0:00:15]}  Bc3 {[%clk 0:01:07]} 45. Re7+ {[%clk 0:00:14]}  Kd8 {[%clk 0:01:07]} 46. Re6 {[%clk 0:00:13]}  Kd7 {[%clk 0:01:08]} 47. Rd6+ {[%clk 0:00:14]}  Kc7 {[%clk 0:01:08]} 48. Rxd4 {[%clk 0:00:15]}  Bxd4 {[%clk 0:01:08]} 49. Kxd4 {[%clk 0:00:16]}  Kd7 {[%clk 0:01:07]} 50. Kc4 {[%clk 0:00:16]}  Kc7 {[%clk 0:01:06]} 51. Kd4 {[%clk 0:00:16]}  Kd7 {[%clk 0:01:05]} 52. Ke5 {[%clk 0:00:17]}  Ke7 {[%clk 0:01:06]} 53. Kf5 {[%clk 0:00:17]}  Kf7 {[%clk 0:01:06]} 54. Kg5 {[%clk 0:00:17]}  Kg7 {[%clk 0:01:06]} 55. b5 {[%clk 0:00:17]}  cxb5 {[%clk 0:01:03]} 56. c6 {[%clk 0:00:18]} 1-0


[Site "https://www.chess.com"]

[Event "Titled Tuesday Blitz April 26 Early 2022"]
[White "Melikhov, Evgeny V."]
[Black "Dixit, Nikhil"]
[WhiteFideId "4122046"]
[BlackFideId "5059534"]
[WhiteElo "1931"]
[BlackElo "2223"]
[Result "0-1"]
[Round "09"]
[TimeControl "180+1"]
[Date "2022.04.26"]
[WhiteClock "0:00:01"]
[BlackClock "0:00:37"]

1. d4 {[%clk 0:03:00]}  Nf6 {[%clk 0:02:59]} 2. c4 {[%clk 0:03:01]}  g6 {[%clk 0:03:00]} 3. Nc3 {[%clk 0:03:01]}  Bg7 {[%clk 0:03:00]} 4. e4 {[%clk 0:03:01]}  d6 {[%clk 0:03:01]} 5. f3 {[%clk 0:03:01]}  O-O {[%clk 0:03:01]} 6. Be3 {[%clk 0:03:02]}  c5 {[%clk 0:03:02]} 7. Nge2 {[%clk 0:03:01]}  Nc6 {[%clk 0:02:59]} 8. d5 {[%clk 0:03:01]}  Ne5 {[%clk 0:02:59]} 9. Ng3 {[%clk 0:03:02]}  e6 {[%clk 0:02:59]} 10. Be2 {[%clk 0:03:01]}  exd5 {[%clk 0:02:56]} 11. cxd5 {[%clk 0:03:01]}  h5 {[%clk 0:02:54]} 12. O-O {[%clk 0:03:00]}  h4 {[%clk 0:02:53]} 13. Nh1 {[%clk 0:03:00]}  a6 {[%clk 0:02:53]} 14. a4 {[%clk 0:02:59]}  Rb8 {[%clk 0:02:53]} 15. Nf2 {[%clk 0:02:55]}  h3 {[%clk 0:02:36]} 16. g3 {[%clk 0:02:54]}  Re8 {[%clk 0:02:28]} 17. f4 {[%clk 0:02:49]}  Ned7 {[%clk 0:02:23]} 18. Qd2 {[%clk 0:02:23]}  b5 {[%clk 0:01:59]} 19. Bf3 {[%clk 0:01:55]}  b4 {[%clk 0:01:50]} 20. Ncd1 {[%clk 0:01:54]}  Nb6 {[%clk 0:01:48]} 21. Rc1 {[%clk 0:01:20]}  a5 {[%clk 0:01:31]} 22. b3 {[%clk 0:01:19]}  Bb7 {[%clk 0:01:22]} 23. Nb2 {[%clk 0:01:19]}  Nfxd5 {[%clk 0:01:16]} 24. exd5 {[%clk 0:01:16]}  Rxe3 {[%clk 0:01:17]} 25. Qxe3 {[%clk 0:01:15]}  Bxb2 {[%clk 0:01:17]} 26. Rcd1 {[%clk 0:01:12]}  Bc3 {[%clk 0:01:11]} 27. Nxh3 {[%clk 0:01:07]}  Ba6 {[%clk 0:01:04]} 28. Ng5 {[%clk 0:00:51]}  Bxf1 {[%clk 0:01:02]} 29. Kxf1 {[%clk 0:00:50]}  c4 {[%clk 0:00:58]} 30. bxc4 {[%clk 0:00:43]}  Nxc4 {[%clk 0:00:59]} 31. Qd3 {[%clk 0:00:34]}  Nb2 {[%clk 0:00:57]} 32. Qe4 {[%clk 0:00:27]}  Nxd1 {[%clk 0:00:56]} 33. Bxd1 {[%clk 0:00:21]}  b3 {[%clk 0:00:55]} 34. Kg2 {[%clk 0:00:15]}  b2 {[%clk 0:00:54]} 35. Bc2 {[%clk 0:00:15]}  Qe8 {[%clk 0:00:51]} 36. Qd3 {[%clk 0:00:14]}  Qe1 {[%clk 0:00:50]} 37. Nxf7 {[%clk 0:00:13]}  Qd2+ {[%clk 0:00:44]} 38. Qxd2 {[%clk 0:00:12]}  Bxd2 {[%clk 0:00:45]} 39. Nxd6 {[%clk 0:00:09]}  b1=Q {[%clk 0:00:45]} 40. Bxb1 {[%clk 0:00:09]}  Rxb1 {[%clk 0:00:44]} 41. Nc4 {[%clk 0:00:08]}  Bb4 {[%clk 0:00:43]} 42. d6 {[%clk 0:00:08]}  Rd1 {[%clk 0:00:43]} 43. Kf3 {[%clk 0:00:06]}  Bxd6 {[%clk 0:00:43]} 44. Nxa5 {[%clk 0:00:04]}  Ra1 {[%clk 0:00:44]} 45. Nc4 {[%clk 0:00:03]}  Bc5 {[%clk 0:00:44]} 46. a5 {[%clk 0:00:03]}  Ra4 {[%clk 0:00:43]} 47. Ne5 {[%clk 0:00:03]}  Kg7 {[%clk 0:00:42]} 48. Kg4 {[%clk 0:00:03]}  Rxa5 {[%clk 0:00:41]} 49. h4 {[%clk 0:00:03]}  Bd6 {[%clk 0:00:41]} 50. Nf3 {[%clk 0:00:03]}  Rd5 {[%clk 0:00:41]} 51. Ng5 {[%clk 0:00:02]}  Be7 {[%clk 0:00:40]} 52. Ne6+ {[%clk 0:00:02]}  Kf6 {[%clk 0:00:40]} 53. Nc7 {[%clk 0:00:01]}  Rd1 {[%clk 0:00:40]} 54. h5 {[%clk 0:00:01]}  gxh5+ {[%clk 0:00:39]} 55. Kxh5 {[%clk 0:00:01]}  Bc5 {[%clk 0:00:39]} 56. Kg4 {[%clk 0:00:01]}  Rd3 {[%clk 0:00:37]} 57. Ne8+ {[%clk 0:00:01]}  Ke7 {[%clk 0:00:37]} 58. Ng7 {[%clk 0:00:01]}  Bf2 {[%clk 0:00:37]} 59. Nf5+ {[%clk 0:00:01]}  Kf6 {[%clk 0:00:37]} 0-1


[Site "https://www.chess.com"]

[Event "Titled Tuesday Blitz April 26 Early 2022"]
[White "Menna Barreto, Felipe Kubiaki"]
[Black "Murthy, Pappu"]
[WhiteFideId "2119757"]
[BlackFideId "2013401"]
[WhiteElo "2261"]
[BlackElo "1974"]
[Result "1-0"]
[Round "09"]
[TimeControl "180+1"]
[Date "2022.04.26"]
[WhiteClock "0:01:24"]
[BlackClock "0:00:07"]

1. d4 {[%clk 0:03:00]}  Nf6 {[%clk 0:02:57]} 2. Nf3 {[%clk 0:03:00]}  e6 {[%clk 0:02:55]} 3. Bg5 {[%clk 0:03:00]}  Be7 {[%clk 0:02:53]} 4. Nbd2 {[%clk 0:02:59]}  d5 {[%clk 0:02:52]} 5. e3 {[%clk 0:02:59]}  Nbd7 {[%clk 0:02:51]} 6. Bd3 {[%clk 0:03:00]}  b6 {[%clk 0:02:52]} 7. c3 {[%clk 0:03:00]}  Nh5 {[%clk 0:02:51]} 8. h4 {[%clk 0:02:57]}  Bb7 {[%clk 0:02:49]} 9. g4 {[%clk 0:02:55]}  Nhf6 {[%clk 0:02:48]} 10. Ne5 {[%clk 0:02:50]}  Nxe5 {[%clk 0:02:46]} 11. dxe5 {[%clk 0:02:49]}  Nd7 {[%clk 0:02:45]} 12. Bf4 {[%clk 0:02:29]}  c5 {[%clk 0:02:33]} 13. h5 {[%clk 0:02:26]}  h6 {[%clk 0:02:31]} 14. Nf3 {[%clk 0:02:24]}  c4 {[%clk 0:02:16]} 15. Bc2 {[%clk 0:02:21]}  Nc5 {[%clk 0:02:16]} 16. Nd4 {[%clk 0:02:20]}  Qd7 {[%clk 0:02:04]} 17. Qe2 {[%clk 0:02:16]}  O-O-O {[%clk 0:02:02]} 18. O-O-O {[%clk 0:02:16]}  Kb8 {[%clk 0:02:00]} 19. Kb1 {[%clk 0:02:16]}  Ka8 {[%clk 0:02:00]} 20. Rhg1 {[%clk 0:02:16]}  Rc8 {[%clk 0:01:52]} 21. g5 {[%clk 0:02:13]}  hxg5 {[%clk 0:01:33]} 22. Bxg5 {[%clk 0:02:14]}  Rcg8 {[%clk 0:01:26]} 23. f4 {[%clk 0:01:58]}  Ba6 {[%clk 0:01:20]} 24. Rg2 {[%clk 0:01:52]}  Nd3 {[%clk 0:01:20]} 25. Rdg1 {[%clk 0:01:48]}  g6 {[%clk 0:01:14]} 26. hxg6 {[%clk 0:01:47]}  Rxg6 {[%clk 0:01:08]} 27. Bxe7 {[%clk 0:01:45]}  Rxg2 {[%clk 0:01:07]} 28. Qxg2 {[%clk 0:01:43]}  Qxe7 {[%clk 0:01:07]} 29. e4 {[%clk 0:01:36]}  Bb7 {[%clk 0:00:53]} 30. exd5 {[%clk 0:01:32]}  Bxd5 {[%clk 0:00:50]} 31. Qg7 {[%clk 0:01:32]}  Rh2 {[%clk 0:00:40]} 32. Qg8+ {[%clk 0:01:31]}  Kb7 {[%clk 0:00:40]} 33. Nb5 {[%clk 0:01:25]}  Nxf4 {[%clk 0:00:13]} 34. Nd6+ {[%clk 0:01:24]}  Ka6 {[%clk 0:00:10]} 35. Qc8+ {[%clk 0:01:24]}  Ka5 {[%clk 0:00:10]} 36. b4+ {[%clk 0:01:23]}  cxb3 {[%clk 0:00:07]} 37. axb3 {[%clk 0:01:24]} 1-0


[Site "https://www.chess.com"]

[Event "Titled Tuesday Blitz April 26 Early 2022"]
[White "Migot, Tangi"]
[Black "Lach, Aleksandra"]
[WhiteFideId "662445"]
[BlackFideId "1134299"]
[WhiteElo "2527"]
[BlackElo "2172"]
[Result "0-1"]
[Round "09"]
[TimeControl "180+1"]
[Date "2022.04.26"]
[WhiteClock "0:00:26"]
[BlackClock "0:00:13"]

1. e4 {[%clk 0:03:00]}  c5 {[%clk 0:02:59]} 2. Nc3 {[%clk 0:03:00]}  Nc6 {[%clk 0:02:58]} 3. Bc4 {[%clk 0:03:01]}  g6 {[%clk 0:02:49]} 4. d3 {[%clk 0:03:00]}  Bg7 {[%clk 0:02:48]} 5. a3 {[%clk 0:03:00]}  e6 {[%clk 0:02:48]} 6. h4 {[%clk 0:03:00]}  h5 {[%clk 0:02:41]} 7. Bg5 {[%clk 0:02:59]}  Nge7 {[%clk 0:02:39]} 8. Ba2 {[%clk 0:02:56]}  Ne5 {[%clk 0:02:26]} 9. Nge2 {[%clk 0:02:53]}  O-O {[%clk 0:02:03]} 10. Qd2 {[%clk 0:02:53]}  b5 {[%clk 0:01:59]} 11. Nxb5 {[%clk 0:02:40]}  Rb8 {[%clk 0:01:58]} 12. Nd6 {[%clk 0:02:27]}  Ba6 {[%clk 0:01:46]} 13. Rb1 {[%clk 0:02:09]}  Rb6 {[%clk 0:01:33]} 14. Nc4 {[%clk 0:02:04]}  Bxc4 {[%clk 0:01:33]} 15. Bxc4 {[%clk 0:02:02]}  Nxc4 {[%clk 0:01:00]} 16. dxc4 {[%clk 0:02:02]}  f6 {[%clk 0:00:54]} 17. Bh6 {[%clk 0:01:52]}  Qc7 {[%clk 0:00:54]} 18. Bxg7 {[%clk 0:01:48]}  Kxg7 {[%clk 0:00:54]} 19. O-O {[%clk 0:01:48]}  Rd6 {[%clk 0:00:37]} 20. Qc3 {[%clk 0:01:43]}  Nc6 {[%clk 0:00:30]} 21. Rbd1 {[%clk 0:01:38]}  Rf7 {[%clk 0:00:31]} 22. b3 {[%clk 0:01:33]}  Ne5 {[%clk 0:00:26]} 23. Ng3 {[%clk 0:01:05]}  Ng4 {[%clk 0:00:21]} 24. Qf3 {[%clk 0:00:59]}  f5 {[%clk 0:00:18]} 25. Rxd6 {[%clk 0:00:55]}  Qxd6 {[%clk 0:00:18]} 26. Rd1 {[%clk 0:00:55]}  Qe5 {[%clk 0:00:17]} 27. exf5 {[%clk 0:00:52]}  exf5 {[%clk 0:00:17]} 28. Qe2 {[%clk 0:00:48]}  Qf4 {[%clk 0:00:15]} 29. Qd2 {[%clk 0:00:44]}  Qe5 {[%clk 0:00:14]} 30. Re1 {[%clk 0:00:43]}  Qc7 {[%clk 0:00:13]} 31. Qd5 {[%clk 0:00:38]}  Qf4 {[%clk 0:00:13]} 32. Qxc5 {[%clk 0:00:33]}  d6 {[%clk 0:00:13]} 33. Qd5 {[%clk 0:00:29]}  Qxf2+ {[%clk 0:00:13]} 34. Kh1 {[%clk 0:00:26]}  Qxe1+ {[%clk 0:00:13]} 0-1


[Site "https://www.chess.com"]

[Event "Titled Tuesday Blitz April 26 Early 2022"]
[White "Mirzoev, Azer"]
[Black "Moskalenko, Alexander"]
[WhiteFideId "13400304"]
[BlackFideId "4155351"]
[WhiteElo "2525"]
[BlackElo "2434"]
[Result "1-0"]
[Round "09"]
[TimeControl "180+1"]
[Date "2022.04.26"]
[WhiteClock "0:00:06"]
[BlackClock "0:00:04"]

1. d4 {[%clk 0:03:00]}  d5 {[%clk 0:02:17]} 2. Nf3 {[%clk 0:03:01]}  e6 {[%clk 0:02:18]} 3. Bf4 {[%clk 0:03:01]}  c5 {[%clk 0:02:17]} 4. e3 {[%clk 0:03:01]}  Bd6 {[%clk 0:02:00]} 5. c3 {[%clk 0:02:56]}  Ne7 {[%clk 0:01:58]} 6. Nbd2 {[%clk 0:02:55]}  Qc7 {[%clk 0:01:59]} 7. Bxd6 {[%clk 0:02:46]}  Qxd6 {[%clk 0:01:57]} 8. Bd3 {[%clk 0:02:39]}  Nbc6 {[%clk 0:01:56]} 9. O-O {[%clk 0:02:39]}  e5 {[%clk 0:01:56]} 10. dxe5 {[%clk 0:02:38]}  Nxe5 {[%clk 0:01:57]} 11. Nxe5 {[%clk 0:02:38]}  Qxe5 {[%clk 0:01:57]} 12. Bb5+ {[%clk 0:02:38]}  Nc6 {[%clk 0:01:54]} 13. c4 {[%clk 0:02:27]}  O-O {[%clk 0:01:52]} 14. cxd5 {[%clk 0:02:21]}  Qxd5 {[%clk 0:01:52]} 15. Nc4 {[%clk 0:02:07]}  Qxd1 {[%clk 0:01:49]} 16. Rfxd1 {[%clk 0:02:07]}  Be6 {[%clk 0:01:49]} 17. Nd6 {[%clk 0:02:05]}  Rab8 {[%clk 0:01:49]} 18. a3 {[%clk 0:01:47]}  Na5 {[%clk 0:01:47]} 19. Ne4 {[%clk 0:01:21]}  Nb3 {[%clk 0:01:46]} 20. Rab1 {[%clk 0:01:20]}  Rfd8 {[%clk 0:01:43]} 21. f3 {[%clk 0:01:05]}  h6 {[%clk 0:01:36]} 22. Be2 {[%clk 0:00:52]}  Bf5 {[%clk 0:01:31]} 23. Bd3 {[%clk 0:00:48]}  Be6 {[%clk 0:01:13]} 24. Bc2 {[%clk 0:00:45]}  b6 {[%clk 0:01:13]} 25. Rxd8+ {[%clk 0:00:44]}  Rxd8 {[%clk 0:01:12]} 26. Rd1 {[%clk 0:00:44]}  Rb8 {[%clk 0:01:04]} 27. Kf2 {[%clk 0:00:41]}  f5 {[%clk 0:00:59]} 28. Nc3 {[%clk 0:00:41]}  Kf8 {[%clk 0:00:57]} 29. Rd6 {[%clk 0:00:37]}  Bf7 {[%clk 0:00:49]} 30. Bxf5 {[%clk 0:00:36]}  Na5 {[%clk 0:00:48]} 31. Rd7 {[%clk 0:00:28]}  Nc4 {[%clk 0:00:48]} 32. Nd1 {[%clk 0:00:26]}  a6 {[%clk 0:00:44]} 33. f4 {[%clk 0:00:24]}  a5 {[%clk 0:00:44]} 34. Bd3 {[%clk 0:00:21]}  b5 {[%clk 0:00:44]} 35. g4 {[%clk 0:00:20]}  Nb6 {[%clk 0:00:43]} 36. Rc7 {[%clk 0:00:15]}  c4 {[%clk 0:00:43]} 37. Be4 {[%clk 0:00:10]}  b4 {[%clk 0:00:43]} 38. axb4 {[%clk 0:00:10]}  axb4 {[%clk 0:00:44]} 39. g5 {[%clk 0:00:08]}  hxg5 {[%clk 0:00:43]} 40. fxg5 {[%clk 0:00:08]}  Na4 {[%clk 0:00:38]} 41. Bc6 {[%clk 0:00:06]}  Nc5 {[%clk 0:00:37]} 42. e4 {[%clk 0:00:06]}  Be6 {[%clk 0:00:18]} 43. Bd5 {[%clk 0:00:05]}  Bxd5 {[%clk 0:00:12]} 44. exd5 {[%clk 0:00:06]}  Nd3+ {[%clk 0:00:11]} 45. Ke3 {[%clk 0:00:06]}  Ne5 {[%clk 0:00:08]} 46. Kd4 {[%clk 0:00:05]}  Nf3+ {[%clk 0:00:08]} 47. Kxc4 {[%clk 0:00:05]}  Nxg5 {[%clk 0:00:08]} 48. Ne3 {[%clk 0:00:05]}  Ne4 {[%clk 0:00:08]} 49. Nf5 {[%clk 0:00:05]}  b3 {[%clk 0:00:07]} 50. Nxg7 {[%clk 0:00:04]}  Nd6+ {[%clk 0:00:05]} 51. Kc5 {[%clk 0:00:04]}  Ne4+ {[%clk 0:00:04]} 52. Kd4 {[%clk 0:00:04]}  Rb4+ {[%clk 0:00:03]} 53. Ke5 {[%clk 0:00:04]}  Nd2 {[%clk 0:00:04]} 54. Ne6+ {[%clk 0:00:04]}  Ke8 {[%clk 0:00:03]} 55. d6 {[%clk 0:00:04]}  Nc4+ {[%clk 0:00:02]} 56. Kd5 {[%clk 0:00:04]}  Ne3+ {[%clk 0:00:03]} 57. Kc5 {[%clk 0:00:04]}  Rc4+ {[%clk 0:00:03]} 58. Kb6 {[%clk 0:00:04]}  Nd5+ {[%clk 0:00:02]} 59. Kb7 {[%clk 0:00:04]}  Nxc7 {[%clk 0:00:03]} 60. dxc7 {[%clk 0:00:04]}  Kd7 {[%clk 0:00:03]} 61. Nf8+ {[%clk 0:00:04]}  Ke7 {[%clk 0:00:04]} 62. c8=Q {[%clk 0:00:04]}  Rxc8 {[%clk 0:00:04]} 63. Kxc8 {[%clk 0:00:05]}  Kxf8 {[%clk 0:00:05]} 64. Kc7 {[%clk 0:00:05]}  Kg7 {[%clk 0:00:04]} 65. Kc6 {[%clk 0:00:06]} 1-0


[Site "https://www.chess.com"]

[Event "Titled Tuesday Blitz April 26 Early 2022"]
[White "Nakamura, Hikaru"]
[Black "Alekseenko, Kirill"]
[WhiteFideId "2016192"]
[BlackFideId "4135539"]
[WhiteElo "2850"]
[BlackElo "2682"]
[Result "1-0"]
[Round "09"]
[TimeControl "180+1"]
[Date "2022.04.26"]
[WhiteClock "0:00:56"]
[BlackClock "0:00:18"]

1. Nf3 {[%clk 0:03:00]}  d5 {[%clk 0:03:00]} 2. e3 {[%clk 0:02:59]}  c5 {[%clk 0:03:00]} 3. b3 {[%clk 0:02:59]}  e6 {[%clk 0:02:58]} 4. Bb2 {[%clk 0:02:59]}  Nc6 {[%clk 0:02:59]} 5. d4 {[%clk 0:02:59]}  cxd4 {[%clk 0:02:49]} 6. Nxd4 {[%clk 0:02:59]}  Nf6 {[%clk 0:02:46]} 7. Nxc6 {[%clk 0:02:59]}  bxc6 {[%clk 0:02:46]} 8. Be2 {[%clk 0:02:58]}  Bd6 {[%clk 0:02:43]} 9. c4 {[%clk 0:02:57]}  O-O {[%clk 0:02:43]} 10. O-O {[%clk 0:02:57]}  e5 {[%clk 0:02:28]} 11. cxd5 {[%clk 0:02:51]}  cxd5 {[%clk 0:02:28]} 12. Nc3 {[%clk 0:02:51]}  Be6 {[%clk 0:02:04]} 13. Rc1 {[%clk 0:02:46]}  a6 {[%clk 0:01:50]} 14. Na4 {[%clk 0:02:44]}  Qe7 {[%clk 0:01:46]} 15. Rc6 {[%clk 0:02:34]}  a5 {[%clk 0:01:30]} 16. Qa1 {[%clk 0:02:09]}  Nd7 {[%clk 0:01:27]} 17. Rd1 {[%clk 0:02:06]}  Rac8 {[%clk 0:01:26]} 18. Rxc8 {[%clk 0:02:02]}  Rxc8 {[%clk 0:01:27]} 19. Nc3 {[%clk 0:02:02]}  d4 {[%clk 0:01:13]} 20. Nb5 {[%clk 0:01:58]}  Bb8 {[%clk 0:00:59]} 21. exd4 {[%clk 0:01:57]}  exd4 {[%clk 0:01:00]} 22. Nxd4 {[%clk 0:01:55]}  Bd5 {[%clk 0:00:45]} 23. Bf3 {[%clk 0:01:43]}  Qd6 {[%clk 0:00:27]} 24. g3 {[%clk 0:01:20]}  Bxf3 {[%clk 0:00:26]} 25. Nxf3 {[%clk 0:01:20]}  Qe6 {[%clk 0:00:18]} 26. Bxg7 {[%clk 0:01:12]}  Qg4 {[%clk 0:00:18]} 27. Bb2 {[%clk 0:00:56]}  Qf4 {[%clk 0:00:18]} 28. gxf4 {[%clk 0:00:56]} 1-0


[Site "https://www.chess.com"]

[Event "Titled Tuesday Blitz April 26 Early 2022"]
[White "Nguyen, Hong Anh"]
[Black "Papasimakopoulos, Alexandros"]
[WhiteFideId "12406732"]
[BlackFideId "4244125"]
[WhiteElo "2016"]
[BlackElo "2340"]
[Result "0-1"]
[Round "09"]
[TimeControl "180+1"]
[Date "2022.04.26"]
[WhiteClock "0:00:53"]
[BlackClock "0:00:23"]

1. d4 {[%clk 0:03:00]}  e6 {[%clk 0:02:58]} 2. Nf3 {[%clk 0:03:01]}  Nf6 {[%clk 0:02:56]} 3. g3 {[%clk 0:03:01]}  b5 {[%clk 0:02:56]} 4. Bg2 {[%clk 0:03:01]}  Bb7 {[%clk 0:02:57]} 5. O-O {[%clk 0:03:01]}  c5 {[%clk 0:02:56]} 6. dxc5 {[%clk 0:03:01]}  Bxc5 {[%clk 0:02:56]} 7. a4 {[%clk 0:03:01]}  b4 {[%clk 0:02:56]} 8. c4 {[%clk 0:02:57]}  bxc3 {[%clk 0:02:56]} 9. Nxc3 {[%clk 0:02:57]}  O-O {[%clk 0:02:53]} 10. Bf4 {[%clk 0:02:54]}  d5 {[%clk 0:02:36]} 11. Rc1 {[%clk 0:02:53]}  Na6 {[%clk 0:02:35]} 12. Nb5 {[%clk 0:02:52]}  Qb6 {[%clk 0:02:29]} 13. Ne5 {[%clk 0:02:45]}  Rfd8 {[%clk 0:02:24]} 14. Bg5 {[%clk 0:02:39]}  Be7 {[%clk 0:02:24]} 15. Be3 {[%clk 0:02:35]}  Qa5 {[%clk 0:01:59]} 16. Nc6 {[%clk 0:02:35]}  Bxc6 {[%clk 0:01:57]} 17. Rxc6 {[%clk 0:02:35]}  Rd7 {[%clk 0:01:40]} 18. Bd4 {[%clk 0:02:24]}  Nb4 {[%clk 0:01:36]} 19. Rc1 {[%clk 0:02:20]}  a6 {[%clk 0:01:34]} 20. Nc3 {[%clk 0:02:18]}  Qd8 {[%clk 0:01:28]} 21. e3 {[%clk 0:02:11]}  Rc8 {[%clk 0:01:26]} 22. Qe2 {[%clk 0:02:08]}  h6 {[%clk 0:01:21]} 23. Rfd1 {[%clk 0:02:04]}  Rb8 {[%clk 0:01:06]} 24. Bf3 {[%clk 0:01:54]}  Kf8 {[%clk 0:00:52]} 25. Be5 {[%clk 0:01:48]}  Bd6 {[%clk 0:00:50]} 26. Bxd6+ {[%clk 0:01:45]}  Rxd6 {[%clk 0:00:51]} 27. e4 {[%clk 0:01:42]}  dxe4 {[%clk 0:00:49]} 28. Nxe4 {[%clk 0:01:42]}  Nxe4 {[%clk 0:00:48]} 29. Qxe4 {[%clk 0:01:43]}  Kg8 {[%clk 0:00:44]} 30. Qf4 {[%clk 0:01:40]}  Nd3 {[%clk 0:00:37]} 31. Rxd3 {[%clk 0:01:36]}  Rxd3 {[%clk 0:00:38]} 32. Kg2 {[%clk 0:01:28]}  Rd4 {[%clk 0:00:36]} 33. Qe5 {[%clk 0:01:23]}  Qd6 {[%clk 0:00:36]} 34. Qe2 {[%clk 0:01:19]}  Rd2 {[%clk 0:00:34]} 35. Qe4 {[%clk 0:01:15]}  f5 {[%clk 0:00:34]} 36. Qe3 {[%clk 0:01:12]}  Rbxb2 {[%clk 0:00:33]} 37. Rf1 {[%clk 0:01:00]}  Kh7 {[%clk 0:00:30]} 38. h4 {[%clk 0:00:59]}  Qd4 {[%clk 0:00:24]} 39. Qxe6 {[%clk 0:00:54]}  Rxf2+ {[%clk 0:00:24]} 40. Kh3 {[%clk 0:00:53]}  Rh2# {[%clk 0:00:23]} 0-1


[Site "https://www.chess.com"]